[Event "Titled Tuesday Blitz January 17 Late 2023"]
[White "Ivanisevic, Ivan"]
[Black "ArchibaldCerveza29"]
[WhiteFideId "912417"]
[WhiteElo "2532"]
[BlackElo "2547"]
[Result "0-1"]
[Round "02"]
[TimeControl "180+2"]
[Date "2023.01.17"]
[WhiteClock "0:00:08"]
[BlackClock "0:00:09"]

1. d4 {[%clk 0:03:00]}  d5 {[%clk 0:02:59]} 2. c4 {[%clk 0:03:01]}  e6 {[%clk 0:02:59]} 3. Nc3 {[%clk 0:03:00]}  Nf6 {[%clk 0:02:58]} 4. cxd5 {[%clk 0:02:58]}  exd5 {[%clk 0:02:59]} 5. Bf4 {[%clk 0:02:54]}  Bd6 {[%clk 0:02:56]} 6. e3 {[%clk 0:02:51]}  O-O {[%clk 0:02:51]} 7. Bd3 {[%clk 0:02:50]}  Re8 {[%clk 0:02:35]} 8. Nge2 {[%clk 0:02:36]}  Bg4 {[%clk 0:02:24]} 9. f3 {[%clk 0:02:22]}  Bxf4 {[%clk 0:02:21]} 10. exf4 {[%clk 0:02:21]}  Bc8 {[%clk 0:02:08]} 11. O-O {[%clk 0:02:20]}  c6 {[%clk 0:02:03]} 12. Kh1 {[%clk 0:02:17]}  Qd6 {[%clk 0:02:00]} 13. Qd2 {[%clk 0:02:15]}  a5 {[%clk 0:01:55]} 14. g4 {[%clk 0:02:08]}  Nbd7 {[%clk 0:01:26]} 15. f5 {[%clk 0:02:07]}  Nf8 {[%clk 0:01:21]} 16. Nf4 {[%clk 0:01:52]}  Qb4 {[%clk 0:01:09]} 17. g5 {[%clk 0:01:38]}  N6d7 {[%clk 0:01:03]} 18. f6 {[%clk 0:01:37]}  g6 {[%clk 0:00:52]} 19. Bc2 {[%clk 0:01:32]}  Nb6 {[%clk 0:00:48]} 20. b3 {[%clk 0:01:23]}  a4 {[%clk 0:00:37]} 21. a3 {[%clk 0:01:22]}  Qd6 {[%clk 0:00:35]} 22. Nxa4 {[%clk 0:01:10]}  Rxa4 {[%clk 0:00:19]} 23. bxa4 {[%clk 0:01:11]}  Nc4 {[%clk 0:00:20]} 24. Qc1 {[%clk 0:00:53]}  Re3 {[%clk 0:00:14]} 25. Ng2 {[%clk 0:00:49]}  Rc3 {[%clk 0:00:11]} 26. Re1 {[%clk 0:00:36]}  Bh3 {[%clk 0:00:11]} 27. Re2 {[%clk 0:00:13]}  Ne6 {[%clk 0:00:11]} 28. Ra2 {[%clk 0:00:10]}  Bxg2+ {[%clk 0:00:09]} 29. Rxg2 {[%clk 0:00:11]}  Nf4 {[%clk 0:00:09]} 30. Rf2 {[%clk 0:00:09]}  Nd3 {[%clk 0:00:09]} 31. Qa1 {[%clk 0:00:08]}  Nxf2+ {[%clk 0:00:09]} 32. Kg2 {[%clk 0:00:09]}  Rxc2 {[%clk 0:00:08]} 33. Rxc2 {[%clk 0:00:08]}  Ne3+ {[%clk 0:00:09]} 34. Kxf2 {[%clk 0:00:09]}  Nxc2 {[%clk 0:00:10]} 35. Qc3 {[%clk 0:00:09]}  Nxa3 {[%clk 0:00:09]} 36. Qe3 {[%clk 0:00:08]}  Nc4 {[%clk 0:00:08]} 37. Qe8+ {[%clk 0:00:08]}  Qf8 {[%clk 0:00:08]} 38. Qe7 {[%clk 0:00:08]}  Qxe7 {[%clk 0:00:08]} 39. fxe7 {[%clk 0:00:08]}  Nd6 {[%clk 0:00:09]} 40. a5 {[%clk 0:00:08]}  f6 {[%clk 0:00:09]} 41. gxf6 {[%clk 0:00:08]}  Kf7 {[%clk 0:00:09]} 42. f4 {[%clk 0:00:07]}  Kxf6 {[%clk 0:00:10]} 43. f5 {[%clk 0:00:08]}  gxf5 {[%clk 0:00:09]} 0-1


[Site "https://www.chess.com"]

[Event "Titled Tuesday Blitz January 17 Late 2023"]
[White "Kaasen, Tor Fredrik"]
[Black "Przybylski, Wojciech"]
[WhiteFideId "1516647"]
[BlackFideId "1117599"]
[WhiteElo "2480"]
[BlackElo "2321"]
[Result "1-0"]
[Round "02"]
[TimeControl "180+2"]
[Date "2023.01.17"]
[WhiteClock "0:00:42"]
[BlackClock "0:00:02"]

1. Nf3 {[%clk 0:03:00]}  Nf6 {[%clk 0:02:59]} 2. c4 {[%clk 0:03:00]}  e6 {[%clk 0:02:57]} 3. e3 {[%clk 0:02:59]}  d5 {[%clk 0:02:57]} 4. Nc3 {[%clk 0:03:00]}  c6 {[%clk 0:02:55]} 5. b3 {[%clk 0:03:00]}  Nbd7 {[%clk 0:02:55]} 6. Bb2 {[%clk 0:03:00]}  Bd6 {[%clk 0:02:54]} 7. Be2 {[%clk 0:03:01]}  O-O {[%clk 0:02:54]} 8. O-O {[%clk 0:03:02]}  b6 {[%clk 0:02:53]} 9. d4 {[%clk 0:02:58]}  Bb7 {[%clk 0:02:52]} 10. Qc2 {[%clk 0:02:54]}  c5 {[%clk 0:02:52]} 11. cxd5 {[%clk 0:02:53]}  exd5 {[%clk 0:02:51]} 12. Rad1 {[%clk 0:02:53]}  Rc8 {[%clk 0:02:49]} 13. Rfe1 {[%clk 0:02:51]}  Re8 {[%clk 0:02:46]} 14. Bf1 {[%clk 0:02:48]}  Qe7 {[%clk 0:02:45]} 15. Qb1 {[%clk 0:02:45]}  h6 {[%clk 0:02:42]} 16. g3 {[%clk 0:02:44]}  Ne4 {[%clk 0:02:25]} 17. dxc5 {[%clk 0:02:32]}  Ndxc5 {[%clk 0:02:24]} 18. Nxd5 {[%clk 0:02:25]}  Qe6 {[%clk 0:02:24]} 19. Nf4 {[%clk 0:02:20]}  Qg4 {[%clk 0:02:10]} 20. Bg2 {[%clk 0:02:09]}  Nxf2 {[%clk 0:00:11]} 21. Kxf2 {[%clk 0:02:01]}  Ne4+ {[%clk 0:00:11]} 22. Kg1 {[%clk 0:01:57]}  Nxg3 {[%clk 0:00:11]} 23. h3 {[%clk 0:01:39]}  Qd7 {[%clk 0:00:04]} 24. Qd3 {[%clk 0:01:31]}  Rcd8 {[%clk 0:00:03]} 25. Qd4 {[%clk 0:01:28]}  Nf5 {[%clk 0:00:02]} 26. Qd3 {[%clk 0:01:21]}  Qe7 {[%clk 0:00:02]} 27. Qxf5 {[%clk 0:01:19]}  Be4 {[%clk 0:00:02]} 28. Qg4 {[%clk 0:01:18]}  f5 {[%clk 0:00:02]} 29. Qg6 {[%clk 0:01:15]}  Rf8 {[%clk 0:00:02]} 30. Ne6 {[%clk 0:01:09]}  Rfe8 {[%clk 0:00:01]} 31. Nxg7 {[%clk 0:01:07]}  Qf7 {[%clk 0:00:01]} 32. Qxf7+ {[%clk 0:01:02]}  Kxf7 {[%clk 0:00:02]} 33. Nh5 {[%clk 0:01:01]}  Rg8 {[%clk 0:00:01]} 34. Kf2 {[%clk 0:01:00]}  Bc5 {[%clk 0:00:01]} 35. Nf4 {[%clk 0:00:54]}  Rxd1 {[%clk 0:00:01]} 36. Rxd1 {[%clk 0:00:53]}  Ke7 {[%clk 0:00:01]} 37. Nd5+ {[%clk 0:00:50]}  Kf7 {[%clk 0:00:01]} 38. Ne5+ {[%clk 0:00:50]}  Ke6 {[%clk 0:00:01]} 39. Bxe4 {[%clk 0:00:48]}  fxe4 {[%clk 0:00:01]} 40. Nf4+ {[%clk 0:00:46]}  Kf5 {[%clk 0:00:02]} 41. Ng4 {[%clk 0:00:44]}  h5 {[%clk 0:00:01]} 42. Nh6+ {[%clk 0:00:44]}  Kg5 {[%clk 0:00:02]} 43. Nxg8 {[%clk 0:00:43]}  Kh4 {[%clk 0:00:02]} 44. Bf6# {[%clk 0:00:42]} 1-0


[Site "https://www.chess.com"]

[Event "Titled Tuesday Blitz January 17 Late 2023"]
[White "Taichman, Ori"]
[Black "Kobalia, Mikhail"]
[WhiteFideId "2804069"]
[BlackFideId "4119150"]
[WhiteElo "2299"]
[BlackElo "2578"]
[Result "0-1"]
[Round "02"]
[TimeControl "180+2"]
[Date "2023.01.17"]
[WhiteClock "0:00:11"]
[BlackClock "0:00:21"]

1. e4 {[%clk 0:02:53]}  c5 {[%clk 0:02:59]} 2. b3 {[%clk 0:02:51]}  Nc6 {[%clk 0:02:56]} 3. Bb2 {[%clk 0:02:51]}  a6 {[%clk 0:02:55]} 4. f4 {[%clk 0:02:51]}  e6 {[%clk 0:02:53]} 5. Nf3 {[%clk 0:02:51]}  d5 {[%clk 0:02:53]} 6. exd5 {[%clk 0:02:42]}  exd5 {[%clk 0:02:51]} 7. Qe2+ {[%clk 0:02:32]}  Qe7 {[%clk 0:02:50]} 8. Nc3 {[%clk 0:02:31]}  Nf6 {[%clk 0:02:44]} 9. O-O-O {[%clk 0:02:24]}  d4 {[%clk 0:02:37]} 10. Na4 {[%clk 0:02:20]}  Bg4 {[%clk 0:02:09]} 11. Nb6 {[%clk 0:01:54]}  Rd8 {[%clk 0:01:50]} 12. Qf2 {[%clk 0:01:52]}  Ne4 {[%clk 0:01:39]} 13. Qg1 {[%clk 0:01:51]}  Qc7 {[%clk 0:01:39]} 14. Re1 {[%clk 0:01:20]}  Qxb6 {[%clk 0:01:28]} 15. h3 {[%clk 0:01:09]}  Be6 {[%clk 0:01:19]} 16. Rxe4 {[%clk 0:01:05]}  Be7 {[%clk 0:01:19]} 17. Ne5 {[%clk 0:00:48]}  Nxe5 {[%clk 0:01:16]} 18. Rxe5 {[%clk 0:00:49]}  Bf6 {[%clk 0:01:12]} 19. Re4 {[%clk 0:00:42]}  O-O {[%clk 0:01:11]} 20. Re1 {[%clk 0:00:20]}  Qc6 {[%clk 0:01:09]} 21. g4 {[%clk 0:00:20]}  Bh4 {[%clk 0:01:06]} 22. Re5 {[%clk 0:00:19]}  Bd5 {[%clk 0:01:03]} 23. Rh2 {[%clk 0:00:18]}  Bf6 {[%clk 0:00:56]} 24. Re1 {[%clk 0:00:17]}  Rfe8 {[%clk 0:00:54]} 25. Rhe2 {[%clk 0:00:17]}  Rxe2 {[%clk 0:00:46]} 26. Bxe2 {[%clk 0:00:17]}  Bh4 {[%clk 0:00:42]} 27. Rf1 {[%clk 0:00:16]}  Re8 {[%clk 0:00:41]} 28. Bd3 {[%clk 0:00:15]}  b5 {[%clk 0:00:41]} 29. g5 {[%clk 0:00:14]}  Bg2 {[%clk 0:00:26]} 30. Rd1 {[%clk 0:00:14]}  Qf3 {[%clk 0:00:23]} 31. Kb1 {[%clk 0:00:11]}  Bf2 {[%clk 0:00:22]} 32. Qh2 {[%clk 0:00:11]}  Qxd1+ {[%clk 0:00:22]} 33. Bc1 {[%clk 0:00:11]}  Re1 {[%clk 0:00:21]} 0-1


[Site "https://www.chess.com"]

[Event "Titled Tuesday Blitz January 17 Late 2023"]
[White "Makridis, Dimitrios"]
[Black "Mendez Fortes, Eduardo Jesus"]
[WhiteFideId "25864475"]
[BlackFideId "3502376"]
[WhiteElo "2356"]
[BlackElo "2250"]
[Result "1-0"]
[Round "02"]
[TimeControl "180+2"]
[Date "2023.01.17"]
[WhiteClock "0:00:51"]
[BlackClock "0:00:07"]

1. e4 {[%clk 0:02:59]}  e5 {[%clk 0:02:59]} 2. f4 {[%clk 0:02:59]}  d5 {[%clk 0:02:54]} 3. Nf3 {[%clk 0:02:55]}  exf4 {[%clk 0:02:52]} 4. e5 {[%clk 0:02:51]}  Nc6 {[%clk 0:02:50]} 5. d4 {[%clk 0:02:50]}  Nge7 {[%clk 0:02:39]} 6. Bxf4 {[%clk 0:02:47]}  Ng6 {[%clk 0:02:39]} 7. Be3 {[%clk 0:02:47]}  f6 {[%clk 0:02:38]} 8. Nc3 {[%clk 0:02:43]}  Bb4 {[%clk 0:02:30]} 9. exf6 {[%clk 0:02:37]}  Qxf6 {[%clk 0:02:29]} 10. Bd3 {[%clk 0:02:25]}  O-O {[%clk 0:02:12]} 11. O-O {[%clk 0:02:24]}  Bxc3 {[%clk 0:02:10]} 12. bxc3 {[%clk 0:02:23]}  Bg4 {[%clk 0:02:06]} 13. h3 {[%clk 0:02:21]}  Bxf3 {[%clk 0:01:59]} 14. Rxf3 {[%clk 0:02:22]}  Qe6 {[%clk 0:01:59]} 15. Rb1 {[%clk 0:02:22]}  Rxf3 {[%clk 0:01:56]} 16. Qxf3 {[%clk 0:02:23]}  Rf8 {[%clk 0:01:54]} 17. Qg3 {[%clk 0:02:22]}  b6 {[%clk 0:01:44]} 18. Bd2 {[%clk 0:02:16]}  Qd6 {[%clk 0:01:27]} 19. Qxd6 {[%clk 0:02:07]}  cxd6 {[%clk 0:01:28]} 20. Bxg6 {[%clk 0:02:04]}  hxg6 {[%clk 0:01:26]} 21. Rb5 {[%clk 0:02:05]}  Ne7 {[%clk 0:01:25]} 22. Bg5 {[%clk 0:02:04]}  Nf5 {[%clk 0:00:57]} 23. Rxd5 {[%clk 0:02:01]}  Rc8 {[%clk 0:00:55]} 24. Bd2 {[%clk 0:01:54]}  Rc6 {[%clk 0:00:47]} 25. g4 {[%clk 0:01:51]}  Ne7 {[%clk 0:00:45]} 26. Rb5 {[%clk 0:01:46]}  Kf7 {[%clk 0:00:44]} 27. Kf2 {[%clk 0:01:44]}  Ke6 {[%clk 0:00:43]} 28. Ke2 {[%clk 0:01:42]}  Nd5 {[%clk 0:00:37]} 29. Kd3 {[%clk 0:01:41]}  a6 {[%clk 0:00:36]} 30. Rb1 {[%clk 0:01:39]}  b5 {[%clk 0:00:36]} 31. Re1+ {[%clk 0:01:38]}  Kf7 {[%clk 0:00:35]} 32. Rf1+ {[%clk 0:01:32]}  Kg8 {[%clk 0:00:33]} 33. h4 {[%clk 0:01:18]}  Nb6 {[%clk 0:00:31]} 34. h5 {[%clk 0:01:16]}  d5 {[%clk 0:00:25]} 35. h6 {[%clk 0:01:14]}  Nc4 {[%clk 0:00:20]} 36. Rf8+ {[%clk 0:01:04]}  Kxf8 {[%clk 0:00:20]} 37. h7 {[%clk 0:01:05]}  Re6 {[%clk 0:00:18]} 38. h8=Q+ {[%clk 0:01:02]}  Kf7 {[%clk 0:00:18]} 39. Bf4 {[%clk 0:00:48]}  Nb2+ {[%clk 0:00:16]} 40. Kd2 {[%clk 0:00:48]}  Nc4+ {[%clk 0:00:16]} 41. Kd1 {[%clk 0:00:48]}  Nb2+ {[%clk 0:00:16]} 42. Kc1 {[%clk 0:00:49]}  Nc4 {[%clk 0:00:17]} 43. Be5 {[%clk 0:00:49]}  Nxe5 {[%clk 0:00:15]} 44. dxe5 {[%clk 0:00:50]}  Rxe5 {[%clk 0:00:16]} 45. Qh2 {[%clk 0:00:50]}  Kf6 {[%clk 0:00:16]} 46. Qf4+ {[%clk 0:00:49]}  Ke6 {[%clk 0:00:16]} 47. Kb2 {[%clk 0:00:49]}  Re4 {[%clk 0:00:14]} 48. Qf8 {[%clk 0:00:49]}  Rxg4 {[%clk 0:00:15]} 49. Qxg7 {[%clk 0:00:50]}  b4 {[%clk 0:00:14]} 50. Qb7 {[%clk 0:00:48]}  bxc3+ {[%clk 0:00:14]} 51. Kb3 {[%clk 0:00:49]}  Rc4 {[%clk 0:00:13]} 52. Qxa6+ {[%clk 0:00:49]}  Kf5 {[%clk 0:00:13]} 53. a4 {[%clk 0:00:50]}  g5 {[%clk 0:00:12]} 54. Qb5 {[%clk 0:00:50]}  Ke4 {[%clk 0:00:12]} 55. a5 {[%clk 0:00:50]}  g4 {[%clk 0:00:12]} 56. a6 {[%clk 0:00:50]}  g3 {[%clk 0:00:13]} 57. a7 {[%clk 0:00:50]}  g2 {[%clk 0:00:12]} 58. a8=Q {[%clk 0:00:49]}  Rd4 {[%clk 0:00:12]} 59. Qae8+ {[%clk 0:00:48]}  Kf3 {[%clk 0:00:12]} 60. Qbe2+ {[%clk 0:00:48]}  Kg3 {[%clk 0:00:12]} 61. Q8e3+ {[%clk 0:00:49]}  Kh2 {[%clk 0:00:09]} 62. Qh5+ {[%clk 0:00:50]}  Rh4 {[%clk 0:00:07]} 63. Qxh4# {[%clk 0:00:51]} 1-0


[Site "https://www.chess.com"]

[Event "Titled Tuesday Blitz January 17 Late 2023"]
[White "TheKnightOfBosnia"]
[Black "Cardoso Cardoso, Jose Gabriel"]
[BlackFideId "4430492"]
[WhiteElo "2530"]
[BlackElo "2492"]
[Result "1/2-1/2"]
[Round "02"]
[TimeControl "180+2"]
[Date "2023.01.17"]
[WhiteClock "0:00:07"]
[BlackClock "0:00:03"]

1. e4 {[%clk 0:03:00]}  g6 {[%clk 0:02:58]} 2. d4 {[%clk 0:03:00]}  Bg7 {[%clk 0:02:56]} 3. Nf3 {[%clk 0:03:00]}  d6 {[%clk 0:02:56]} 4. h3 {[%clk 0:03:01]}  Nf6 {[%clk 0:02:53]} 5. Bd3 {[%clk 0:03:01]}  O-O {[%clk 0:02:53]} 6. O-O {[%clk 0:03:01]}  Nc6 {[%clk 0:02:53]} 7. c3 {[%clk 0:03:01]}  e5 {[%clk 0:02:52]} 8. Nbd2 {[%clk 0:03:00]}  a5 {[%clk 0:02:50]} 9. Re1 {[%clk 0:02:58]}  Re8 {[%clk 0:02:47]} 10. dxe5 {[%clk 0:02:55]}  Nxe5 {[%clk 0:02:47]} 11. Nxe5 {[%clk 0:02:55]}  dxe5 {[%clk 0:02:47]} 12. Qc2 {[%clk 0:02:48]}  b6 {[%clk 0:02:45]} 13. a4 {[%clk 0:02:48]}  Bb7 {[%clk 0:02:45]} 14. Nc4 {[%clk 0:02:48]}  Qe7 {[%clk 0:02:42]} 15. Bg5 {[%clk 0:02:47]}  h6 {[%clk 0:02:40]} 16. Bxf6 {[%clk 0:02:38]}  Bxf6 {[%clk 0:02:38]} 17. Rad1 {[%clk 0:02:39]}  Bg5 {[%clk 0:02:22]} 18. Ne3 {[%clk 0:02:38]}  Bxe3 {[%clk 0:02:13]} 19. Rxe3 {[%clk 0:02:39]}  Qc5 {[%clk 0:02:10]} 20. Bb5 {[%clk 0:02:18]}  c6 {[%clk 0:01:58]} 21. Be2 {[%clk 0:02:12]}  Bc8 {[%clk 0:01:54]} 22. Red3 {[%clk 0:01:53]}  h5 {[%clk 0:01:43]} 23. b3 {[%clk 0:01:19]}  Be6 {[%clk 0:01:38]} 24. Qb2 {[%clk 0:01:11]}  Qe7 {[%clk 0:01:29]} 25. c4 {[%clk 0:01:06]}  Qc5 {[%clk 0:01:22]} 26. Qd2 {[%clk 0:01:06]}  Qe7 {[%clk 0:01:15]} 27. Qb2 {[%clk 0:01:01]}  Qg5 {[%clk 0:01:07]} 28. Qd2 {[%clk 0:00:56]}  Qxd2 {[%clk 0:01:04]} 29. R1xd2 {[%clk 0:00:56]}  Kf8 {[%clk 0:01:02]} 30. Rd6 {[%clk 0:00:55]}  Rac8 {[%clk 0:01:00]} 31. h4 {[%clk 0:00:51]}  Ke7 {[%clk 0:00:59]} 32. f3 {[%clk 0:00:33]}  Bd5 {[%clk 0:00:54]} 33. cxd5 {[%clk 0:00:28]}  Kxd6 {[%clk 0:00:51]} 34. dxc6+ {[%clk 0:00:29]}  Ke7 {[%clk 0:00:21]} 35. Rd7+ {[%clk 0:00:28]}  Kf8 {[%clk 0:00:22]} 36. Bb5 {[%clk 0:00:23]}  Re7 {[%clk 0:00:21]} 37. Rd5 {[%clk 0:00:19]}  Rcc7 {[%clk 0:00:18]} 38. Rd8+ {[%clk 0:00:18]}  Kg7 {[%clk 0:00:18]} 39. Rb8 {[%clk 0:00:19]}  Re6 {[%clk 0:00:17]} 40. Rxb6 {[%clk 0:00:19]}  Rd6 {[%clk 0:00:17]} 41. Ra6 {[%clk 0:00:18]}  f5 {[%clk 0:00:15]} 42. exf5 {[%clk 0:00:14]}  gxf5 {[%clk 0:00:16]} 43. Rxa5 {[%clk 0:00:15]}  Kf6 {[%clk 0:00:16]} 44. Ra8 {[%clk 0:00:14]}  Rd2 {[%clk 0:00:15]} 45. Rf8+ {[%clk 0:00:11]}  Ke6 {[%clk 0:00:13]} 46. Rg8 {[%clk 0:00:10]}  e4 {[%clk 0:00:12]} 47. fxe4 {[%clk 0:00:10]}  fxe4 {[%clk 0:00:13]} 48. a5 {[%clk 0:00:09]}  e3 {[%clk 0:00:10]} 49. Re8+ {[%clk 0:00:09]}  Kd5 {[%clk 0:00:08]} 50. Rxe3 {[%clk 0:00:08]}  Rg7 {[%clk 0:00:09]} 51. Rd3+ {[%clk 0:00:08]}  Rxd3 {[%clk 0:00:07]} 52. Bxd3 {[%clk 0:00:09]}  Kxc6 {[%clk 0:00:08]} 53. b4 {[%clk 0:00:08]}  Rg4 {[%clk 0:00:08]} 54. b5+ {[%clk 0:00:08]}  Kb7 {[%clk 0:00:07]} 55. a6+ {[%clk 0:00:07]}  Kb6 {[%clk 0:00:07]} 56. Kf2 {[%clk 0:00:07]}  Rxh4 {[%clk 0:00:07]} 57. Be2 {[%clk 0:00:07]}  Rh1 {[%clk 0:00:05]} 58. Kg3 {[%clk 0:00:06]}  h4+ {[%clk 0:00:04]} 59. Kf2 {[%clk 0:00:06]}  Ra1 {[%clk 0:00:03]} 60. Kf3 {[%clk 0:00:05]}  Ra4 {[%clk 0:00:03]} 61. Ke3 {[%clk 0:00:05]}  Rb4 {[%clk 0:00:03]} 62. Kf2 {[%clk 0:00:05]}  Rb3 {[%clk 0:00:03]} 63. Kg1 {[%clk 0:00:05]}  Rb2 {[%clk 0:00:03]} 64. Kf2 {[%clk 0:00:05]}  Ka7 {[%clk 0:00:02]} 65. Ke3 {[%clk 0:00:06]}  Rb4 {[%clk 0:00:02]} 66. Kf2 {[%clk 0:00:06]}  Kb6 {[%clk 0:00:03]} 67. Ke3 {[%clk 0:00:06]}  Rb3+ {[%clk 0:00:03]} 68. Kf2 {[%clk 0:00:07]}  Rg3 {[%clk 0:00:04]} 69. Kg1 {[%clk 0:00:07]}  h3 {[%clk 0:00:04]} 70. Bf1 {[%clk 0:00:06]}  hxg2 {[%clk 0:00:03]} 71. Bxg2 {[%clk 0:00:07]}  Kxb5 {[%clk 0:00:01]} 72. a7 {[%clk 0:00:07]}  Rg8 {[%clk 0:00:02]} 73. a8=Q {[%clk 0:00:07]}  Rxa8 {[%clk 0:00:03]} 74. Bxa8 {[%clk 0:00:07]} 1/2-1/2


[Site "https://www.chess.com"]

[Event "Titled Tuesday Blitz January 17 Late 2023"]
[White "Tatarinov, Dmitry"]
[Black "Koutlas, Nikolaos"]
[WhiteFideId "24160067"]
[BlackFideId "25827138"]
[WhiteElo "2310"]
[BlackElo "2341"]
[Result "1-0"]
[Round "02"]
[TimeControl "180+2"]
[Date "2023.01.17"]
[WhiteClock "0:01:17"]
[BlackClock "0:00:27"]

1. d4 {[%clk 0:03:00]}  Nf6 {[%clk 0:02:57]} 2. c4 {[%clk 0:03:00]}  g6 {[%clk 0:02:57]} 3. Nf3 {[%clk 0:03:00]}  Bg7 {[%clk 0:02:58]} 4. g3 {[%clk 0:03:00]}  O-O {[%clk 0:02:59]} 5. Bg2 {[%clk 0:03:01]}  d6 {[%clk 0:02:58]} 6. O-O {[%clk 0:03:02]}  c6 {[%clk 0:02:59]} 7. Nc3 {[%clk 0:03:02]}  Qa5 {[%clk 0:03:00]} 8. Re1 {[%clk 0:03:02]}  Qh5 {[%clk 0:03:00]} 9. e4 {[%clk 0:03:00]}  Bg4 {[%clk 0:03:01]} 10. Qd3 {[%clk 0:02:59]}  Na6 {[%clk 0:02:33]} 11. e5 {[%clk 0:02:59]}  dxe5 {[%clk 0:02:29]} 12. Nxe5 {[%clk 0:02:57]}  Nb4 {[%clk 0:02:29]} 13. Qd2 {[%clk 0:02:50]}  Rad8 {[%clk 0:02:20]} 14. a3 {[%clk 0:02:49]}  Rxd4 {[%clk 0:02:03]} 15. Qxd4 {[%clk 0:02:45]}  Nc2 {[%clk 0:02:03]} 16. Qd2 {[%clk 0:02:27]}  Nxa1 {[%clk 0:02:02]} 17. Nxg4 {[%clk 0:02:09]}  Nxg4 {[%clk 0:01:59]} 18. h3 {[%clk 0:02:09]}  Nf6 {[%clk 0:01:38]} 19. Rxe7 {[%clk 0:01:49]}  Nb3 {[%clk 0:01:26]} 20. Qg5 {[%clk 0:01:49]}  Nxc1 {[%clk 0:01:25]} 21. Qxc1 {[%clk 0:01:48]}  Rd8 {[%clk 0:01:25]} 22. Rxb7 {[%clk 0:01:46]}  Ne4 {[%clk 0:01:24]} 23. Bxe4 {[%clk 0:01:38]}  Bxc3 {[%clk 0:01:23]} 24. Qxc3 {[%clk 0:01:36]}  Qxh3 {[%clk 0:01:13]} 25. Qf3 {[%clk 0:01:35]}  Qe6 {[%clk 0:01:05]} 26. Bxc6 {[%clk 0:01:32]}  Qxc4 {[%clk 0:01:03]} 27. Kg2 {[%clk 0:01:28]}  h5 {[%clk 0:01:00]} 28. Rxa7 {[%clk 0:01:27]}  h4 {[%clk 0:00:59]} 29. gxh4 {[%clk 0:01:27]}  Rd4 {[%clk 0:00:58]} 30. Qf6 {[%clk 0:01:19]}  Rg4+ {[%clk 0:00:26]} 31. Kh3 {[%clk 0:01:19]}  Rf4 {[%clk 0:00:27]} 32. Ra8+ {[%clk 0:01:17]} 1-0


[Site "https://www.chess.com"]

[Event "Titled Tuesday Blitz January 17 Late 2023"]
[White "Borges Feria, Yasel"]
[Black "Marczuk, Dominik"]
[WhiteFideId "3504921"]
[BlackFideId "1111264"]
[WhiteElo "2439"]
[BlackElo "2253"]
[Result "1-0"]
[Round "02"]
[TimeControl "180+2"]
[Date "2023.01.17"]
[WhiteClock "0:00:33"]
[BlackClock "0:00:16"]

1. d4 {[%clk 0:03:00]}  Nf6 {[%clk 0:02:57]} 2. c4 {[%clk 0:03:00]}  g6 {[%clk 0:02:57]} 3. Nc3 {[%clk 0:02:59]}  Bg7 {[%clk 0:02:57]} 4. e4 {[%clk 0:02:58]}  O-O {[%clk 0:02:57]} 5. h3 {[%clk 0:02:54]}  d6 {[%clk 0:02:57]} 6. g4 {[%clk 0:02:52]}  e5 {[%clk 0:02:50]} 7. d5 {[%clk 0:02:48]}  a5 {[%clk 0:02:50]} 8. Be3 {[%clk 0:02:43]}  Na6 {[%clk 0:02:50]} 9. Bg2 {[%clk 0:02:34]}  Nc5 {[%clk 0:02:49]} 10. Nge2 {[%clk 0:02:34]}  c6 {[%clk 0:02:39]} 11. Ng3 {[%clk 0:02:31]}  cxd5 {[%clk 0:02:39]} 12. cxd5 {[%clk 0:02:29]}  a4 {[%clk 0:02:28]} 13. O-O {[%clk 0:02:26]}  b5 {[%clk 0:02:25]} 14. a3 {[%clk 0:02:00]}  Qa5 {[%clk 0:02:04]} 15. Na2 {[%clk 0:01:56]}  Nb3 {[%clk 0:01:53]} 16. Rb1 {[%clk 0:01:56]}  Bd7 {[%clk 0:01:50]} 17. Nb4 {[%clk 0:01:55]}  Rac8 {[%clk 0:01:50]} 18. Qe2 {[%clk 0:01:50]}  Rc4 {[%clk 0:01:45]} 19. f3 {[%clk 0:01:46]}  Rfc8 {[%clk 0:01:45]} 20. Kh1 {[%clk 0:01:39]}  Ne8 {[%clk 0:01:41]} 21. Qf2 {[%clk 0:01:35]}  Nd4 {[%clk 0:01:33]} 22. f4 {[%clk 0:01:32]}  f6 {[%clk 0:01:08]} 23. Rbc1 {[%clk 0:01:23]}  Rxc1 {[%clk 0:01:03]} 24. Rxc1 {[%clk 0:01:21]}  Rxc1+ {[%clk 0:01:03]} 25. Bxc1 {[%clk 0:01:22]}  Qc7 {[%clk 0:01:03]} 26. Be3 {[%clk 0:01:17]}  Qc4 {[%clk 0:01:03]} 27. Bf1 {[%clk 0:01:13]}  Qb3 {[%clk 0:00:57]} 28. Kh2 {[%clk 0:01:08]}  Qd1 {[%clk 0:00:46]} 29. Bxd4 {[%clk 0:01:03]}  Qxd4 {[%clk 0:00:42]} 30. Qxd4 {[%clk 0:00:58]}  exd4 {[%clk 0:00:43]} 31. Bd3 {[%clk 0:00:59]}  Kf7 {[%clk 0:00:39]} 32. Kg2 {[%clk 0:00:54]}  f5 {[%clk 0:00:38]} 33. exf5 {[%clk 0:00:52]}  Nf6 {[%clk 0:00:30]} 34. g5 {[%clk 0:00:46]}  Ne8 {[%clk 0:00:21]} 35. f6 {[%clk 0:00:47]}  Bf8 {[%clk 0:00:22]} 36. h4 {[%clk 0:00:46]}  Nc7 {[%clk 0:00:22]} 37. Ne2 {[%clk 0:00:41]}  Bc8 {[%clk 0:00:16]} 38. Nxd4 {[%clk 0:00:39]}  Bb7 {[%clk 0:00:16]} 39. Be4 {[%clk 0:00:39]}  h6 {[%clk 0:00:15]} 40. Kf3 {[%clk 0:00:38]}  h5 {[%clk 0:00:16]} 41. Ne6 {[%clk 0:00:33]} 1-0


[Site "https://www.chess.com"]